[Event "*** Titled Tuesday Blitz"]
[Site "Chess.com"]
[Date "2018.12.04"]
[Round "8"]
[White "Jooonaaas1996"]
[Black "kasparik_garik"]
[Result "1-0"]
[WhiteElo "2313"]
[BlackElo "2502"]
[TimeControl "180+2"]
[EndTime "14:58:16 PST"]
[Termination "Jooonaaas1996 won by resignation"]

1. e4 {[%clk 0:03:01.4]} 1... c5 {[%clk 0:03:00.4]} 2. Nf3 {[%clk 0:03:02.2]}
2... e6 {[%clk 0:03:00.3]} 3. d4 {[%clk 0:03:03.5]} 3... cxd4 {[%clk 0:03:02.2]}
4. Nxd4 {[%clk 0:03:05]} 4... a6 {[%clk 0:03:03.4]} 5. Bd3 {[%clk 0:03:05.2]}
5... Bc5 {[%clk 0:03:03.7]} 6. Nb3 {[%clk 0:03:05.6]} 6... Ba7 {[%clk
0:03:04.5]} 7. O-O {[%clk 0:02:55.5]} 7... Nc6 {[%clk 0:03:05]} 8. Qg4 {[%clk
0:02:56.1]} 8... Nf6 {[%clk 0:03:05.9]} 9. Qxg7 {[%clk 0:02:56.9]} 9... Rg8
{[%clk 0:03:05.6]} 10. Qh6 {[%clk 0:02:58.4]} 10... Rg6 {[%clk 0:02:59.1]} 11.
Qh4 {[%clk 0:02:48.6]} 11... Rg4 {[%clk 0:02:53.9]} 12. Qh3 {[%clk 0:02:39.7]}
12... b5 {[%clk 0:02:43.3]} 13. Be3 {[%clk 0:02:10.2]} 13... Bxe3 {[%clk
0:02:35.9]} 14. Qxe3 {[%clk 0:02:12.1]} 14... Bb7 {[%clk 0:02:30.3]} 15. Nc5
{[%clk 0:02:01.9]} 15... Qb6 {[%clk 0:02:22.4]} 16. Nxb7 {[%clk 0:01:58.9]}
16... Qxb7 {[%clk 0:02:23.3]} 17. Nd2 {[%clk 0:01:48]} 17... Ne5 {[%clk
0:02:22.7]} 18. f3 {[%clk 0:01:46.9]} 18... Rg6 {[%clk 0:02:18]} 19. a4 {[%clk
0:01:42.9]} 19... bxa4 {[%clk 0:02:14.5]} 20. Rxa4 {[%clk 0:01:15.9]} 20... Qxb2
{[%clk 0:02:13.2]} 21. Rb1 {[%clk 0:01:16.7]} 21... Qc3 {[%clk 0:02:13.4]} 22.
Nc4 {[%clk 0:01:07.1]} 22... Nxc4 {[%clk 0:01:59.5]} 23. Rxc4 {[%clk 0:01:07.3]}
23... Qa3 {[%clk 0:02:00.3]} 24. Rc7 {[%clk 0:00:55.6]} 24... Rd8 {[%clk
0:01:51.8]} 25. Ra7 {[%clk 0:00:54.2]} 25... a5 {[%clk 0:01:52]} 26. Qe1 {[%clk
0:00:45.4]} 26... Qc5+ {[%clk 0:01:44.9]} 27. Qf2 {[%clk 0:00:45.6]} 27... Qxf2+
{[%clk 0:01:44.5]} 28. Kxf2 {[%clk 0:00:47.5]} 28... Rg5 {[%clk 0:01:45.6]} 29.
Ra1 {[%clk 0:00:47.4]} 29... Ke7 {[%clk 0:01:39.8]} 30. R1xa5 {[%clk 0:00:45.9]}
30... Rxa5 {[%clk 0:01:37.1]} 31. Rxa5 {[%clk 0:00:47.8]} 31... h6 {[%clk
0:01:38.1]} 32. h3 {[%clk 0:00:42.8]} 32... Rc8 {[%clk 0:01:37.4]} 33. f4 {[%clk
0:00:41.7]} 33... Rc7 {[%clk 0:01:37.2]} 34. Ra8 {[%clk 0:00:38.9]} 34... Ne8
{[%clk 0:01:35]} 35. Ke3 {[%clk 0:00:38.2]} 35... Rb7 {[%clk 0:01:35.5]} 36. Ra1
{[%clk 0:00:37.8]} 36... Rc7 {[%clk 0:01:35.2]} 37. g4 {[%clk 0:00:37.6]} 37...
Nd6 {[%clk 0:01:24.2]} 38. Ra5 {[%clk 0:00:29.5]} 38... f6 {[%clk 0:01:23.2]}
39. Rh5 {[%clk 0:00:29]} 39... Nf7 {[%clk 0:01:24.2]} 40. h4 {[%clk 0:00:24.3]}
40... d6 {[%clk 0:01:17.8]} 41. g5 {[%clk 0:00:23.9]} 41... fxg5 {[%clk
0:01:16.7]} 42. hxg5 {[%clk 0:00:24.2]} 42... Rc5 {[%clk 0:00:52.9]} 43. f5
{[%clk 0:00:14.8]} 43... hxg5 {[%clk 0:00:49.2]} 44. Rh7 {[%clk 0:00:11.4]}
44... Kf6 {[%clk 0:00:46]} 45. fxe6 {[%clk 0:00:11]} 45... Kxe6 {[%clk 0:00:47]}
46. Rg7 {[%clk 0:00:09.4]} 46... Kf6 {[%clk 0:00:47.1]} 47. Rg8 {[%clk
0:00:10.6]} 47... Ne5 {[%clk 0:00:41.8]} 48. Rf8+ {[%clk 0:00:11.4]} 48... Ke7
{[%clk 0:00:41.7]} 49. Rg8 {[%clk 0:00:12.3]} 49... Kf6 {[%clk 0:00:42]} 50.
Rf8+ {[%clk 0:00:13.3]} 50... Kg7 {[%clk 0:00:41.6]} 51. Rd8 {[%clk 0:00:13.3]}
51... Nf7 {[%clk 0:00:40.8]} 52. Rd7 {[%clk 0:00:13.7]} 52... Kf6 {[%clk
0:00:41.8]} 53. Ra7 {[%clk 0:00:13.7]} 53... Ne5 {[%clk 0:00:37.5]} 54. Ra8
{[%clk 0:00:14.7]} 54... Rc7 {[%clk 0:00:37.2]} 55. Rg8 {[%clk 0:00:14.5]} 55...
Rg7 {[%clk 0:00:37.6]} 56. Rf8+ {[%clk 0:00:15.3]} 56... Ke7 {[%clk 0:00:36.9]}
57. Rf1 {[%clk 0:00:14.8]} 57... Rf7 {[%clk 0:00:37]} 58. Rg1 {[%clk 0:00:15.4]}
58... Rf3+ {[%clk 0:00:37.6]} 59. Ke2 {[%clk 0:00:16]} 59... Kf6 {[%clk
0:00:38.7]} 60. Rg2 {[%clk 0:00:14.2]} 60... g4 {[%clk 0:00:38.8]} 61. Rxg4
{[%clk 0:00:11]} 61... Rh3 {[%clk 0:00:34.8]} 62. Rf4+ {[%clk 0:00:11.6]} 62...
Ke7 {[%clk 0:00:35.7]} 63. Rf5 {[%clk 0:00:11.9]} 63... Kd7 {[%clk 0:00:35.8]}
64. Rf2 {[%clk 0:00:08.7]} 64... Kc6 {[%clk 0:00:36.4]} 65. Kd2 {[%clk 0:00:09]}
65... Kc5 {[%clk 0:00:36.7]} 66. Rf6 {[%clk 0:00:05]} 66... Rh2+ {[%clk
0:00:35.9]} 67. Kc3 {[%clk 0:00:05.6]} 67... Rh1 {[%clk 0:00:33.5]} 68. Re6
{[%clk 0:00:06.7]} 68... Ra1 {[%clk 0:00:33.8]} 69. Re8 {[%clk 0:00:05.9]} 69...
Ra3+ {[%clk 0:00:34.1]} 70. Kb2 {[%clk 0:00:07.1]} 70... Ra7 {[%clk 0:00:34.1]}
71. Kc3 {[%clk 0:00:07.4]} 71... Rc7 {[%clk 0:00:34]} 72. Rd8 {[%clk 0:00:06.9]}
72... Nc6 {[%clk 0:00:33.4]} 73. Re8 {[%clk 0:00:06.3]} 73... Ne5 {[%clk
0:00:34.2]} 74. Rd8 {[%clk 0:00:07.3]} 74... Kc6 {[%clk 0:00:34.7]} 75. Kd4
{[%clk 0:00:06.6]} 75... Ra7 {[%clk 0:00:31]} 76. Ke3 {[%clk 0:00:03.9]} 76...
Kc7 {[%clk 0:00:30.3]} 77. Rg8 {[%clk 0:00:04.2]} 77... Ra3 {[%clk 0:00:31]} 78.
Rg7+ {[%clk 0:00:04.5]} 78... Kc6 {[%clk 0:00:32.1]} 79. Rg8 {[%clk 0:00:06.2]}
79... Ra1 {[%clk 0:00:31.7]} 80. Rc8+ {[%clk 0:00:07]} 80... Kd7 {[%clk
0:00:32.9]} 81. Rg8 {[%clk 0:00:07.9]} 81... Ke7 {[%clk 0:00:33.4]} 82. Rg7+
{[%clk 0:00:06.8]} 82... Kf6 {[%clk 0:00:34.3]} 83. Rg8 {[%clk 0:00:06.7]} 83...
Re1+ {[%clk 0:00:34.2]} 84. Kd4 {[%clk 0:00:07.4]} 84... Ra1 {[%clk 0:00:34.8]}
85. Kd5 {[%clk 0:00:08.2]} 85... Ke7 {[%clk 0:00:33.9]} 86. Rg7+ {[%clk
0:00:08.5]} 86... Nf7 {[%clk 0:00:35]} 87. Rxf7+ {[%clk 0:00:08.4]} 87... Kxf7
{[%clk 0:00:35.4]} 88. Kxd6 {[%clk 0:00:10.3]} 88... Rh1 {[%clk 0:00:28.2]} 89.
Bc4+ {[%clk 0:00:09.9]} 89... Ke8 {[%clk 0:00:27.2]} 90. Bd5 {[%clk 0:00:10.9]}
90... Rh6+ {[%clk 0:00:27.1]} 91. Kc5 {[%clk 0:00:11.7]} 91... Ke7 {[%clk
0:00:28.2]} 92. c4 {[%clk 0:00:12.7]} 92... Rh1 {[%clk 0:00:26]} 93. e5 {[%clk
0:00:13.1]} 93... Re1 {[%clk 0:00:26.6]} 94. e6 {[%clk 0:00:14.1]} 94... Kf6
{[%clk 0:00:26.8]} 95. Kd6 {[%clk 0:00:14.7]} 95... Ra1 {[%clk 0:00:20.8]} 96.
c5 {[%clk 0:00:14.7]} 96... Ra6+ {[%clk 0:00:15.7]} 97. c6 {[%clk 0:00:15.7]}
97... Ra5 {[%clk 0:00:11.3]} 98. c7 {[%clk 0:00:13]} 1-0

[Event "*** Titled Tuesday Blitz"]
[Site "Chess.com"]
[Date "2018.12.04"]
[Round "9"]
[White "Kawhi_Leonard2"]
[Black "Chessmatus"]
[Result "0-1"]
[WhiteElo "2262"]
[BlackElo "2182"]
[TimeControl "180+2"]
[EndTime "15:03:29 PST"]
[Termination "Chessmatus won by resignation"]

1. e4 {[%clk 0:03:01.9]} 1... c5 {[%clk 0:02:59.5]} 2. Nf3 {[%clk 0:03:02.9]}
2... d6 {[%clk 0:03:00.6]} 3. d4 {[%clk 0:03:04.1]} 3... cxd4 {[%clk 0:03:01.8]}
4. Nxd4 {[%clk 0:03:05.4]} 4... Nf6 {[%clk 0:03:03]} 5. Nc3 {[%clk 0:03:06.7]}
5... a6 {[%clk 0:03:04.2]} 6. h3 {[%clk 0:03:08.1]} 6... e5 {[%clk 0:03:05]} 7.
Nde2 {[%clk 0:03:08.4]} 7... b5 {[%clk 0:03:05.9]} 8. Ng3 {[%clk 0:03:07.5]}
8... Be7 {[%clk 0:03:03.6]} 9. Bd3 {[%clk 0:03:07.5]} 9... Be6 {[%clk
0:03:04.1]} 10. Bg5 {[%clk 0:03:07.7]} 10... O-O {[%clk 0:03:04.4]} 11. O-O
{[%clk 0:03:07.9]} 11... Nbd7 {[%clk 0:03:05.1]} 12. f4 {[%clk 0:03:06.8]} 12...
Qb6+ {[%clk 0:03:03.2]} 13. Kh2 {[%clk 0:03:05.9]} 13... h6 {[%clk 0:02:57.6]}
14. Bxf6 {[%clk 0:03:06.3]} 14... Nxf6 {[%clk 0:02:58.3]} 15. fxe5 {[%clk
0:03:03.6]} 15... dxe5 {[%clk 0:02:58.6]} 16. Nf5 {[%clk 0:03:04.8]} 16... Bxf5
{[%clk 0:02:52.1]} 17. Rxf5 {[%clk 0:03:04.4]} 17... Rad8 {[%clk 0:02:49.6]} 18.
Qf3 {[%clk 0:03:04.4]} 18... b4 {[%clk 0:02:42]} 19. Nd5 {[%clk 0:03:03.4]}
19... Nxd5 {[%clk 0:02:43.2]} 20. exd5 {[%clk 0:03:04.7]} 20... Bd6 {[%clk
0:02:44.8]} 21. Rf1 {[%clk 0:03:03.4]} 21... e4+ {[%clk 0:02:44.9]} 0-1

[Event "*** Titled Tuesday Blitz"]
[Site "Chess.com"]
[Date "2018.12.04"]
[Round "9"]
[White "akretchetov"]
[Black "Laico"]
[Result "0-1"]
[WhiteElo "2365"]
[BlackElo "2279"]
[TimeControl "180+2"]
[EndTime "15:05:08 PST"]
[Termination "Laico won by resignation"]

1. Nf3 {[%clk 0:02:47.2]} 1... e6 {[%clk 0:02:58.4]} 2. c4 {[%clk 0:02:47.6]}
2... f6 {[%clk 0:02:58.4]} 3. Nc3 {[%clk 0:02:46.6]} 3... f5 {[%clk 0:02:57.3]}
4. e4 {[%clk 0:02:42.6]} 4... fxe4 {[%clk 0:02:57.8]} 5. Nxe4 {[%clk 0:02:43.1]}
5... Nf6 {[%clk 0:02:58]} 6. Bd3 {[%clk 0:02:39.4]} 6... Be7 {[%clk 0:02:50.9]}
7. Qc2 {[%clk 0:02:38.6]} 7... g6 {[%clk 0:02:35.6]} 8. Nxf6+ {[%clk 0:02:26.6]}
8... Bxf6 {[%clk 0:02:36.3]} 9. Bxg6+ {[%clk 0:02:19.6]} 9... hxg6 {[%clk
0:02:36.4]} 10. Qxg6+ {[%clk 0:02:20.5]} 10... Ke7 {[%clk 0:02:36.6]} 11. d4
{[%clk 0:02:17.2]} 11... Qg8 {[%clk 0:02:34.3]} 12. Qe4 {[%clk 0:02:06.7]} 12...
Qh7 {[%clk 0:02:23.6]} 13. Qe2 {[%clk 0:02:04.6]} 13... b6 {[%clk 0:02:10]} 14.
O-O {[%clk 0:02:04]} 14... Bb7 {[%clk 0:02:10.3]} 15. d5 {[%clk 0:02:04.9]}
15... Na6 {[%clk 0:02:03.9]} 16. h3 {[%clk 0:02:03.5]} 16... Rag8 {[%clk
0:02:03]} 17. Kh2 {[%clk 0:01:50.8]} 17... Rxg2+ {[%clk 0:02:01.9]} 0-1

[Event "*** Titled Tuesday Blitz"]
[Site "Chess.com"]
[Date "2018.12.04"]
[Round "9"]
[White "IngOscarArdila"]
[Black "sandager"]
[Result "0-1"]
[WhiteElo "2141"]
[BlackElo "1972"]
[TimeControl "180+2"]
[EndTime "15:05:10 PST"]
[Termination "sandager won by resignation"]

1. e4 {[%clk 0:03:01.7]} 1... e5 {[%clk 0:03:00.6]} 2. Nf3 {[%clk 0:02:59.9]}
2... Nc6 {[%clk 0:03:01.7]} 3. Nc3 {[%clk 0:03:00.5]} 3... Nf6 {[%clk
0:03:00.8]} 4. Bc4 {[%clk 0:03:01.1]} 4... Bc5 {[%clk 0:03:00.9]} 5. O-O {[%clk
0:03:01.1]} 5... d6 {[%clk 0:03:00]} 6. d3 {[%clk 0:03:02]} 6... h6 {[%clk
0:02:58.8]} 7. h3 {[%clk 0:03:02.6]} 7... O-O {[%clk 0:02:58.1]} 8. Qe2 {[%clk
0:03:02.6]} 8... Be6 {[%clk 0:02:56.6]} 9. Bb3 {[%clk 0:03:01.6]} 9... a6 {[%clk
0:02:52.5]} 10. Bd2 {[%clk 0:03:01.7]} 10... Qe7 {[%clk 0:02:45.9]} 11. Nh2
{[%clk 0:03:02.1]} 11... Nd4 {[%clk 0:02:43.7]} 12. Qd1 {[%clk 0:03:03.1]} 12...
c6 {[%clk 0:02:32]} 13. Kh1 {[%clk 0:02:57.6]} 13... d5 {[%clk 0:02:01.2]} 14.
Qe1 {[%clk 0:02:42.3]} 14... Nh5 {[%clk 0:01:54]} 15. Nf3 {[%clk 0:02:25.5]}
15... Nxf3 {[%clk 0:01:50.5]} 16. gxf3 {[%clk 0:02:24.7]} 16... Rad8 {[%clk
0:01:47.8]} 17. Qe2 {[%clk 0:02:18.3]} 17... Qh4 {[%clk 0:01:45.7]} 0-1

[Event "*** Titled Tuesday Blitz"]
[Site "Chess.com"]
[Date "2018.12.04"]
[Round "9"]
[White "hansen"]
[Black "LazyIM"]
[Result "1-0"]
[WhiteElo "2770"]
[BlackElo "2623"]
[TimeControl "180+2"]
[EndTime "15:06:15 PST"]
[Termination "hansen won by resignation"]

1. e4 {[%clk 0:03:00]} 1... e5 {[%clk 0:02:59.8]} 2. Nf3 {[%clk 0:03:00.9]} 2...
Nc6 {[%clk 0:03:01.3]} 3. Bb5 {[%clk 0:02:59.8]} 3... a6 {[%clk 0:03:02.4]} 4.
Ba4 {[%clk 0:03:00.9]} 4... Nf6 {[%clk 0:03:03.7]} 5. O-O {[%clk 0:03:01.2]}
5... b5 {[%clk 0:03:05.3]} 6. Bb3 {[%clk 0:03:01.8]} 6... Bb7 {[%clk 0:03:06.9]}
7. Re1 {[%clk 0:02:59.7]} 7... Bc5 {[%clk 0:03:07.6]} 8. h3 {[%clk 0:02:59.9]}
8... d6 {[%clk 0:03:08.1]} 9. c3 {[%clk 0:02:59]} 9... Ne7 {[%clk 0:03:04.8]}
10. d4 {[%clk 0:03:00]} 10... Bb6 {[%clk 0:03:05]} 11. Bc2 {[%clk 0:02:56.1]}
11... Ng6 {[%clk 0:03:04.3]} 12. Nbd2 {[%clk 0:02:56.5]} 12... c5 {[%clk
0:02:59.3]} 13. d5 {[%clk 0:02:54.7]} 13... c4 {[%clk 0:02:58.4]} 14. Nf1 {[%clk
0:02:51.4]} 14... O-O {[%clk 0:02:59]} 15. Ng3 {[%clk 0:02:51.2]} 15... a5
{[%clk 0:02:55.1]} 16. a4 {[%clk 0:02:50.7]} 16... b4 {[%clk 0:02:55.4]} 17. Qe2
{[%clk 0:02:49.1]} 17... Ba6 {[%clk 0:02:55.7]} 18. Nf5 {[%clk 0:02:47.2]} 18...
Qc7 {[%clk 0:02:49.9]} 19. N3h4 {[%clk 0:02:42.1]} 19... Rfe8 {[%clk 0:02:47]}
20. Qf3 {[%clk 0:02:41.7]} 20... Qd7 {[%clk 0:02:08.3]} 21. Nxg7 {[%clk
0:02:16.6]} 21... Kxg7 {[%clk 0:02:07.3]} 22. Bh6+ {[%clk 0:02:17.1]} 22... Kxh6
{[%clk 0:01:52.1]} 23. Qxf6 {[%clk 0:02:19]} 23... Bc8 {[%clk 0:01:23.9]} 24.
Nf5+ {[%clk 0:02:01.6]} 24... Qxf5 {[%clk 0:01:23.6]} 25. exf5 {[%clk
0:02:03.2]} 25... Bd8 {[%clk 0:01:22.4]} 26. Qxd6 {[%clk 0:02:04.5]} 1-0

[Event "*** Titled Tuesday Blitz"]
[Site "Chess.com"]
[Date "2018.12.04"]
[Round "9"]
[White "mikhaillushenkov"]
[Black "JonahWillow"]
[Result "1-0"]
[WhiteElo "2661"]
[BlackElo "2678"]
[TimeControl "180+2"]
[EndTime "15:06:33 PST"]
[Termination "mikhaillushenkov won by resignation"]

1. Nf3 {[%clk 0:03:00.2]} 1... c5 {[%clk 0:03:00.4]} 2. c4 {[%clk 0:03:00.2]}
2... Nc6 {[%clk 0:03:00.9]} 3. Nc3 {[%clk 0:03:01]} 3... Nf6 {[%clk 0:03:01.4]}
4. e3 {[%clk 0:03:02.2]} 4... e6 {[%clk 0:02:59.6]} 5. d4 {[%clk 0:03:03.2]}
5... cxd4 {[%clk 0:03:01.5]} 6. exd4 {[%clk 0:03:05.1]} 6... d5 {[%clk
0:03:02.3]} 7. Bg5 {[%clk 0:03:05.8]} 7... Be7 {[%clk 0:03:01.3]} 8. a3 {[%clk
0:03:03.2]} 8... O-O {[%clk 0:03:00.5]} 9. c5 {[%clk 0:03:04.1]} 9... h6 {[%clk
0:02:50.3]} 10. Bh4 {[%clk 0:03:03.5]} 10... b6 {[%clk 0:02:49.1]} 11. Bb5
{[%clk 0:03:03.1]} 11... Bb7 {[%clk 0:02:45.9]} 12. b4 {[%clk 0:03:02.2]} 12...
a5 {[%clk 0:02:44.8]} 13. Bxc6 {[%clk 0:03:00.8]} 13... Bxc6 {[%clk 0:02:44.3]}
14. b5 {[%clk 0:03:02.4]} 14... Be8 {[%clk 0:02:45.9]} 15. c6 {[%clk 0:03:02.8]}
15... Ne4 {[%clk 0:02:41.2]} 16. Bxe7 {[%clk 0:03:02.3]} 16... Qxe7 {[%clk
0:02:43.1]} 17. Qd3 {[%clk 0:02:55.4]} 17... Nxc3 {[%clk 0:02:38.1]} 18. Qxc3
{[%clk 0:02:57.3]} 18... f6 {[%clk 0:02:39]} 19. O-O {[%clk 0:02:56.9]} 19...
Bg6 {[%clk 0:02:40.1]} 20. Rfe1 {[%clk 0:02:56.7]} 20... Be4 {[%clk 0:02:40.7]}
21. Nd2 {[%clk 0:02:57.4]} 21... Bg6 {[%clk 0:02:39.6]} 22. Nf1 {[%clk
0:02:57.2]} 22... Rac8 {[%clk 0:02:38.4]} 23. Ne3 {[%clk 0:02:54.9]} 23... Qd6
{[%clk 0:02:37.9]} 24. Rad1 {[%clk 0:02:35.4]} 24... Rfe8 {[%clk 0:02:38.6]} 25.
Nf1 {[%clk 0:02:25.4]} 25... Kh7 {[%clk 0:02:33]} 26. Qg3 {[%clk 0:02:24.4]}
26... Qxg3 {[%clk 0:02:31.8]} 27. hxg3 {[%clk 0:02:26.3]} 27... Bc2 {[%clk
0:02:29.7]} 28. Rd2 {[%clk 0:02:22.6]} 28... Ba4 {[%clk 0:02:29.8]} 29. Rb1
{[%clk 0:02:18.9]} 29... e5 {[%clk 0:02:26.6]} 30. Ne3 {[%clk 0:02:19.6]} 30...
exd4 {[%clk 0:02:18.3]} 31. Rxd4 {[%clk 0:02:21.5]} 31... Rxe3 {[%clk 0:02:09]}
32. fxe3 {[%clk 0:02:20]} 32... Bc2 {[%clk 0:02:10.9]} 33. Rc1 {[%clk
0:02:06.9]} 33... Be4 {[%clk 0:02:07.9]} 34. Rxe4 {[%clk 0:02:03.9]} 34... dxe4
{[%clk 0:02:07.5]} 35. Rd1 {[%clk 0:02:05.5]} 35... Kg6 {[%clk 0:02:06.4]} 36.
Rd7 {[%clk 0:02:06]} 36... a4 {[%clk 0:02:07.2]} 37. Rb7 {[%clk 0:02:06.3]}
37... Kf5 {[%clk 0:02:04.3]} 38. Rxb6 {[%clk 0:02:07.1]} 38... Ke6 {[%clk
0:02:06.2]} 39. Rb7 {[%clk 0:02:07.4]} 39... g5 {[%clk 0:02:07.2]} 40. c7 {[%clk
0:02:06.1]} 40... Kd7 {[%clk 0:02:06.8]} 41. b6 {[%clk 0:02:07.1]} 41... Ra8
{[%clk 0:02:05.4]} 42. Rb8 {[%clk 0:02:06.8]} 1-0

[Event "*** Titled Tuesday Blitz"]
[Site "Chess.com"]
[Date "2018.12.04"]
[Round "9"]
[White "AdrianaNikolova"]
[Black "DSCC1"]
[Result "0-1"]
[WhiteElo "2333"]
[BlackElo "2174"]
[TimeControl "180+2"]
[EndTime "15:06:48 PST"]
[Termination "DSCC1 won on time"]

1. d4 {[%clk 0:03:01.9]} 1... d5 {[%clk 0:03:00.6]} 2. Bf4 {[%clk 0:02:57.7]}
2... c5 {[%clk 0:03:01.2]} 3. c3 {[%clk 0:02:58]} 3... Qb6 {[%clk 0:02:51.2]} 4.
Qb3 {[%clk 0:02:46.6]} 4... c4 {[%clk 0:02:47.4]} 5. Qxb6 {[%clk 0:02:36.4]}
5... axb6 {[%clk 0:02:47.8]} 6. Nd2 {[%clk 0:02:36.2]} 6... b5 {[%clk
0:02:43.3]} 7. a3 {[%clk 0:02:37.5]} 7... Nf6 {[%clk 0:02:36]} 8. Rd1 {[%clk
0:02:35.7]} 8... Bf5 {[%clk 0:02:37.1]} 9. Ngf3 {[%clk 0:02:35.8]} 9... h6
{[%clk 0:02:35.7]} 10. h3 {[%clk 0:02:36.1]} 10... e6 {[%clk 0:02:37.1]} 11. Ne5
{[%clk 0:02:36.7]} 11... Nbd7 {[%clk 0:02:28.7]} 12. g4 {[%clk 0:02:37.7]} 12...
Bh7 {[%clk 0:02:27.4]} 13. Bh2 {[%clk 0:02:38.7]} 13... Nb6 {[%clk 0:02:27.5]}
14. Rc1 {[%clk 0:01:28.9]} 14... Na4 {[%clk 0:02:23.8]} 15. b3 {[%clk
0:01:28.1]} 15... Bxa3 {[%clk 0:02:06.1]} 16. Ra1 {[%clk 0:01:01.4]} 16... Bb2
{[%clk 0:02:05.9]} 17. bxa4 {[%clk 0:00:57.2]} 17... Bxa1 {[%clk 0:02:04.7]} 0-1

[Event "*** Titled Tuesday Blitz"]
[Site "Chess.com"]
[Date "2018.12.04"]
[Round "9"]
[White "theblitzchamp"]
[Black "tteshan"]
[Result "1-0"]
[WhiteElo "2688"]
[BlackElo "2131"]
[TimeControl "180+2"]
[EndTime "15:06:58 PST"]
[Termination "theblitzchamp won by resignation"]

1. e4 {[%clk 0:03:01.9]} 1... c5 {[%clk 0:03:00]} 2. Nf3 {[%clk 0:03:03.2]} 2...
Nc6 {[%clk 0:02:59.9]} 3. d4 {[%clk 0:03:04.7]} 3... cxd4 {[%clk 0:03:00.1]} 4.
Nxd4 {[%clk 0:03:06.6]} 4... g6 {[%clk 0:03:01.2]} 5. Nc3 {[%clk 0:03:07.9]}
5... Bg7 {[%clk 0:03:01.4]} 6. Be3 {[%clk 0:03:09.5]} 6... Nf6 {[%clk
0:03:01.6]} 7. f3 {[%clk 0:03:10.4]} 7... O-O {[%clk 0:03:01.1]} 8. Bc4 {[%clk
0:03:11.1]} 8... d6 {[%clk 0:03:01.4]} 9. Bb3 {[%clk 0:03:12.2]} 9... Bd7 {[%clk
0:03:00.7]} 10. Qd2 {[%clk 0:03:13.5]} 10... Rc8 {[%clk 0:03:00.5]} 11. O-O-O
{[%clk 0:03:14.4]} 11... Ne5 {[%clk 0:03:00.4]} 12. h4 {[%clk 0:03:16]} 12... h5
{[%clk 0:03:01.4]} 13. Bh6 {[%clk 0:03:15.6]} 13... Nc4 {[%clk 0:03:00.6]} 14.
Bxc4 {[%clk 0:03:15.3]} 14... Rxc4 {[%clk 0:03:02.1]} 15. Bxg7 {[%clk
0:03:16.9]} 15... Kxg7 {[%clk 0:03:02.6]} 16. g4 {[%clk 0:03:18.5]} 16... hxg4
{[%clk 0:03:01]} 17. h5 {[%clk 0:03:19.5]} 17... Rh8 {[%clk 0:02:57.8]} 18. hxg6
{[%clk 0:03:20.3]} 18... fxg6 {[%clk 0:02:45.1]} 19. f4 {[%clk 0:03:21.5]} 19...
Qc7 {[%clk 0:02:11.2]} 20. Rxh8 {[%clk 0:03:18.1]} 20... Kxh8 {[%clk 0:02:12.2]}
21. Rh1+ {[%clk 0:03:18.2]} 21... Kg7 {[%clk 0:02:05.2]} 22. f5 {[%clk
0:03:19.2]} 22... Nh5 {[%clk 0:01:53.9]} 23. fxg6 {[%clk 0:03:08.5]} 23... Qc5
{[%clk 0:01:50.1]} 24. Nf5+ {[%clk 0:02:20.8]} 24... Bxf5 {[%clk 0:01:48.6]} 25.
Rxh5 {[%clk 0:02:21.6]} 25... Qg1+ {[%clk 0:01:43.6]} 26. Nd1 {[%clk 0:02:22.4]}
26... Bxg6 {[%clk 0:01:38.3]} 27. Qh6+ {[%clk 0:02:23.1]} 27... Kf7 {[%clk
0:01:38.7]} 28. Rg5 {[%clk 0:02:11.5]} 28... Rxc2+ {[%clk 0:01:04.2]} 29. Kxc2
{[%clk 0:02:08.5]} 29... Bxe4+ {[%clk 0:01:05.2]} 30. Kc1 {[%clk 0:02:08.1]}
30... Bf3 {[%clk 0:00:50.9]} 31. Qg6+ {[%clk 0:02:06.6]} 1-0

[Event "*** Titled Tuesday Blitz"]
[Site "Chess.com"]
[Date "2018.12.04"]
[Round "9"]
[White "kasparik_garik"]
[Black "HanSchut"]
[Result "1-0"]
[WhiteElo "2506"]
[BlackElo "2304"]
[TimeControl "180+2"]
[EndTime "15:07:15 PST"]
[Termination "kasparik_garik won by resignation"]

1. b3 {[%clk 0:02:58.8]} 1... e5 {[%clk 0:02:58.1]} 2. Bb2 {[%clk 0:02:58.2]}
2... Nc6 {[%clk 0:02:59.3]} 3. e3 {[%clk 0:02:59.3]} 3... d5 {[%clk 0:02:59.9]}
4. Bb5 {[%clk 0:02:59.9]} 4... Bd6 {[%clk 0:03:01.2]} 5. Ne2 {[%clk 0:02:58.4]}
5... Qe7 {[%clk 0:03:01.4]} 6. d4 {[%clk 0:02:58.5]} 6... Bd7 {[%clk 0:02:58.7]}
7. Bxc6 {[%clk 0:02:56.6]} 7... Bxc6 {[%clk 0:02:59.6]} 8. dxe5 {[%clk
0:02:57.5]} 8... Bxe5 {[%clk 0:02:59.6]} 9. Bxe5 {[%clk 0:02:58.4]} 9... Qxe5
{[%clk 0:03:00.1]} 10. Qd4 {[%clk 0:02:59.3]} 10... Qxd4 {[%clk 0:02:53.9]} 11.
exd4 {[%clk 0:03:00.2]} 11... Bb5 {[%clk 0:02:47.9]} 12. Nec3 {[%clk 0:02:53.6]}
12... Bc6 {[%clk 0:02:43.3]} 13. Kd2 {[%clk 0:02:50.7]} 13... Nf6 {[%clk
0:02:40.2]} 14. f3 {[%clk 0:02:49.1]} 14... O-O-O {[%clk 0:02:32]} 15. Re1
{[%clk 0:02:48.2]} 15... Rhe8 {[%clk 0:02:32.5]} 16. Rxe8 {[%clk 0:02:48.9]}
16... Rxe8 {[%clk 0:02:32.6]} 17. a4 {[%clk 0:02:50]} 17... Bd7 {[%clk
0:02:14.2]} 18. Nd1 {[%clk 0:02:45.9]} 18... Bf5 {[%clk 0:02:05.7]} 19. Ne3
{[%clk 0:02:46.6]} 19... Bg6 {[%clk 0:02:04.1]} 20. Nc3 {[%clk 0:02:47.5]} 20...
c6 {[%clk 0:02:05.6]} 21. a5 {[%clk 0:02:48.5]} 21... a6 {[%clk 0:02:06.2]} 22.
g4 {[%clk 0:02:46.4]} 22... Nd7 {[%clk 0:01:29.6]} 23. Na4 {[%clk 0:02:44.4]}
23... Kc7 {[%clk 0:01:30.1]} 24. h4 {[%clk 0:02:45]} 24... f6 {[%clk 0:01:27.1]}
25. h5 {[%clk 0:02:39.7]} 25... Bf7 {[%clk 0:01:22]} 26. c4 {[%clk 0:02:38.8]}
26... dxc4 {[%clk 0:01:16.3]} 27. bxc4 {[%clk 0:02:39.5]} 27... Rd8 {[%clk
0:01:11.9]} 28. Kc3 {[%clk 0:02:37.5]} 28... Re8 {[%clk 0:01:05.9]} 29. Re1
{[%clk 0:02:37.8]} 29... g6 {[%clk 0:01:04.6]} 30. h6 {[%clk 0:02:38]} 30... Kd6
{[%clk 0:00:58.4]} 31. c5+ {[%clk 0:02:28.3]} 31... Kc7 {[%clk 0:00:58.4]} 32.
Nb2 {[%clk 0:02:29.2]} 32... Re7 {[%clk 0:00:52.4]} 33. Nd3 {[%clk 0:02:29.8]}
33... Nf8 {[%clk 0:00:41]} 34. Nd5+ {[%clk 0:02:27.6]} 1-0